[Event "Titled Tuesday Blitz April 11 Early 2023"]
[White "Csonka, Balazs"]
[Black "Arat, Ufuk Sezen"]
[WhiteFideId "742910"]
[BlackFideId "6309089"]
[WhiteElo "2404"]
[BlackElo "2289"]
[Result "1-0"]
[Round "05"]
[TimeControl "180+2"]
[Date "2023.04.11"]
[WhiteClock "0:00:07"]
[BlackClock "0:00:10"]

1. d4 {[%clk 0:03:00]}  d5 {[%clk 0:02:57]} 2. c4 {[%clk 0:02:59]}  Nf6 {[%clk 0:02:56]} 3. cxd5 {[%clk 0:02:58]}  g6 {[%clk 0:02:56]} 4. Nc3 {[%clk 0:02:38]}  Nxd5 {[%clk 0:02:55]} 5. e4 {[%clk 0:02:39]}  Nxc3 {[%clk 0:02:55]} 6. bxc3 {[%clk 0:02:40]}  Bg7 {[%clk 0:02:56]} 7. Bc4 {[%clk 0:02:40]}  c5 {[%clk 0:02:56]} 8. Ne2 {[%clk 0:02:40]}  O-O {[%clk 0:02:56]} 9. O-O {[%clk 0:02:39]}  Nc6 {[%clk 0:02:57]} 10. Be3 {[%clk 0:02:40]}  Bg4 {[%clk 0:02:57]} 11. f3 {[%clk 0:02:39]}  Bd7 {[%clk 0:02:57]} 12. Rb1 {[%clk 0:02:37]}  Qc7 {[%clk 0:02:54]} 13. Bf4 {[%clk 0:02:28]}  Qc8 {[%clk 0:02:48]} 14. Rc1 {[%clk 0:02:00]}  Na5 {[%clk 0:02:39]} 15. Bd3 {[%clk 0:01:58]}  b5 {[%clk 0:02:38]} 16. Qd2 {[%clk 0:01:51]}  Rd8 {[%clk 0:02:30]} 17. Bh6 {[%clk 0:01:48]}  Nc4 {[%clk 0:02:27]} 18. Bxc4 {[%clk 0:01:46]}  bxc4 {[%clk 0:02:28]} 19. Bxg7 {[%clk 0:01:40]}  Kxg7 {[%clk 0:02:28]} 20. d5 {[%clk 0:01:12]}  Qc7 {[%clk 0:02:27]} 21. Qe3 {[%clk 0:00:51]}  Rab8 {[%clk 0:02:20]} 22. f4 {[%clk 0:00:44]}  Rb2 {[%clk 0:02:05]} 23. f5 {[%clk 0:00:39]}  Qe5 {[%clk 0:01:59]} 24. Ng3 {[%clk 0:00:36]}  Rf8 {[%clk 0:01:44]} 25. Rf4 {[%clk 0:00:30]}  Rxa2 {[%clk 0:01:42]} 26. Rh4 {[%clk 0:00:29]}  Kg8 {[%clk 0:01:32]} 27. Rf1 {[%clk 0:00:22]}  Qg7 {[%clk 0:01:27]} 28. Qxc5 {[%clk 0:00:19]}  Qxc3 {[%clk 0:01:23]} 29. fxg6 {[%clk 0:00:05]}  fxg6 {[%clk 0:01:18]} 30. Rxf8+ {[%clk 0:00:04]}  Kxf8 {[%clk 0:01:19]} 31. Rf4+ {[%clk 0:00:05]}  Ke8 {[%clk 0:01:11]} 32. Qc7 {[%clk 0:00:03]}  Qd4+ {[%clk 0:01:06]} 33. Kh1 {[%clk 0:00:02]}  Ra1+ {[%clk 0:01:05]} 34. Nf1 {[%clk 0:00:02]}  Qb6 {[%clk 0:00:30]} 35. Qe5 {[%clk 0:00:02]}  Rxf1+ {[%clk 0:00:27]} 36. Rxf1 {[%clk 0:00:03]}  Bc8 {[%clk 0:00:28]} 37. h3 {[%clk 0:00:03]}  Kd7 {[%clk 0:00:22]} 38. Rf7 {[%clk 0:00:02]}  Qd6 {[%clk 0:00:18]} 39. Qd4 {[%clk 0:00:02]}  Bb7 {[%clk 0:00:15]} 40. Qxa7 {[%clk 0:00:02]}  Qc7 {[%clk 0:00:09]} 41. Qa3 {[%clk 0:00:02]}  Ke8 {[%clk 0:00:09]} 42. Rf3 {[%clk 0:00:03]}  Qb6 {[%clk 0:00:06]} 43. Rc3 {[%clk 0:00:02]}  Qb1+ {[%clk 0:00:07]} 44. Kh2 {[%clk 0:00:02]}  Qxe4 {[%clk 0:00:07]} 45. Qa4+ {[%clk 0:00:02]}  Kf7 {[%clk 0:00:07]} 46. Qxc4 {[%clk 0:00:02]}  Qe5+ {[%clk 0:00:07]} 47. Kh1 {[%clk 0:00:02]}  Bxd5 {[%clk 0:00:08]} 48. Qc5 {[%clk 0:00:02]}  Qe1+ {[%clk 0:00:08]} 49. Kh2 {[%clk 0:00:02]}  Qe5+ {[%clk 0:00:09]} 50. Kg1 {[%clk 0:00:02]}  Qe1+ {[%clk 0:00:09]} 51. Kh2 {[%clk 0:00:03]}  Qe5+ {[%clk 0:00:09]} 52. Rg3 {[%clk 0:00:03]}  h5 {[%clk 0:00:09]} 53. Qf2+ {[%clk 0:00:03]}  Kg7 {[%clk 0:00:09]} 54. h4 {[%clk 0:00:04]}  Qd6 {[%clk 0:00:09]} 55. Kg1 {[%clk 0:00:04]}  Be6 {[%clk 0:00:09]} 56. Rg5 {[%clk 0:00:04]}  Qd1+ {[%clk 0:00:07]} 57. Kh2 {[%clk 0:00:04]}  Qd6+ {[%clk 0:00:08]} 58. Qg3 {[%clk 0:00:04]}  Bf7 {[%clk 0:00:05]} 59. Qxd6 {[%clk 0:00:03]}  exd6 {[%clk 0:00:06]} 60. Kg3 {[%clk 0:00:03]}  d5 {[%clk 0:00:07]} 61. Kf4 {[%clk 0:00:04]}  Kf6 {[%clk 0:00:07]} 62. Rg3 {[%clk 0:00:04]}  Be6 {[%clk 0:00:08]} 63. Ra3 {[%clk 0:00:04]}  Bf7 {[%clk 0:00:08]} 64. Ra6+ {[%clk 0:00:04]}  Be6 {[%clk 0:00:08]} 65. Rd6 {[%clk 0:00:04]}  Ke7 {[%clk 0:00:08]} 66. Ke5 {[%clk 0:00:04]}  Bf7 {[%clk 0:00:08]} 67. Ra6 {[%clk 0:00:04]}  Kf8 {[%clk 0:00:08]} 68. Kf6 {[%clk 0:00:04]}  Be8 {[%clk 0:00:08]} 69. Ra8 {[%clk 0:00:04]}  d4 {[%clk 0:00:09]} 70. Rd8 {[%clk 0:00:04]}  d3 {[%clk 0:00:08]} 71. g3 {[%clk 0:00:04]}  d2 {[%clk 0:00:08]} 72. Rxd2 {[%clk 0:00:05]}  Bc6 {[%clk 0:00:08]} 73. Rd8+ {[%clk 0:00:05]}  Be8 {[%clk 0:00:09]} 74. Rc8 {[%clk 0:00:06]}  g5 {[%clk 0:00:09]} 75. hxg5 {[%clk 0:00:07]}  h4 {[%clk 0:00:09]} 76. gxh4 {[%clk 0:00:06]}  Kg8 {[%clk 0:00:10]} 77. g6 {[%clk 0:00:06]}  Kf8 {[%clk 0:00:10]} 78. h5 {[%clk 0:00:07]} 1-0


[Site "https://www.chess.com"]

[Event "Titled Tuesday Blitz April 11 Early 2023"]
[White "Keymer, Vincent"]
[Black "La Villa Rivas, Marlon Javier"]
[WhiteFideId "12940690"]
[BlackFideId "3519546"]
[WhiteElo "2651"]
[BlackElo "2135"]
[Result "1-0"]
[Round "05"]
[TimeControl "180+2"]
[Date "2023.04.11"]
[WhiteClock "0:01:26"]
[BlackClock "0:00:48"]

1. a3 {[%clk 0:03:00]}  d5 {[%clk 0:02:55]} 2. Nf3 {[%clk 0:03:00]}  c5 {[%clk 0:02:55]} 3. b4 {[%clk 0:03:00]}  e6 {[%clk 0:02:46]} 4. bxc5 {[%clk 0:02:59]}  Bxc5 {[%clk 0:02:46]} 5. e3 {[%clk 0:03:00]}  Nf6 {[%clk 0:02:44]} 6. d4 {[%clk 0:03:00]}  Be7 {[%clk 0:02:44]} 7. c4 {[%clk 0:03:00]}  dxc4 {[%clk 0:02:40]} 8. Bxc4 {[%clk 0:03:00]}  O-O {[%clk 0:02:39]} 9. O-O {[%clk 0:02:59]}  Nbd7 {[%clk 0:02:38]} 10. Qe2 {[%clk 0:02:54]}  b6 {[%clk 0:02:38]} 11. e4 {[%clk 0:02:51]}  Bb7 {[%clk 0:02:35]} 12. Nbd2 {[%clk 0:02:51]}  Rc8 {[%clk 0:02:34]} 13. Bd3 {[%clk 0:02:50]}  Qc7 {[%clk 0:02:31]} 14. Bb2 {[%clk 0:02:50]}  e5 {[%clk 0:02:16]} 15. dxe5 {[%clk 0:02:39]}  Ng4 {[%clk 0:02:16]} 16. Nc4 {[%clk 0:02:39]}  b5 {[%clk 0:02:14]} 17. Nd6 {[%clk 0:02:33]}  Bxd6 {[%clk 0:02:14]} 18. exd6 {[%clk 0:02:33]}  Qxd6 {[%clk 0:02:15]} 19. Rad1 {[%clk 0:02:31]}  Qg6 {[%clk 0:02:03]} 20. h3 {[%clk 0:02:06]}  Nh6 {[%clk 0:01:53]} 21. Bxb5 {[%clk 0:02:03]}  Nc5 {[%clk 0:01:52]} 22. Ne5 {[%clk 0:01:44]}  Qxe4 {[%clk 0:01:45]} 23. Qxe4 {[%clk 0:01:44]}  Nxe4 {[%clk 0:01:45]} 24. Rfe1 {[%clk 0:01:40]}  Rc2 {[%clk 0:01:30]} 25. Bd4 {[%clk 0:01:34]}  Nf5 {[%clk 0:01:20]} 26. Bxa7 {[%clk 0:01:33]}  Nc3 {[%clk 0:01:06]} 27. Bd3 {[%clk 0:01:31]}  Ne3 {[%clk 0:00:48]} 28. Bxe3 {[%clk 0:01:26]} 1-0


[Site "https://www.chess.com"]

[Event "Titled Tuesday Blitz April 11 Early 2023"]
[White "Skliarov, Viktor"]
[Black "Bacallao Alonso, Yusnel"]
[WhiteFideId "14106736"]
[BlackFideId "3507416"]
[WhiteElo "2317"]
[BlackElo "2561"]
[Result "1-0"]
[Round "05"]
[TimeControl "180+2"]
[Date "2023.04.11"]
[WhiteClock "0:00:07"]
[BlackClock "0:00:03"]

1. e4 {[%clk 0:03:00]}  c6 {[%clk 0:02:58]} 2. d4 {[%clk 0:03:00]}  d5 {[%clk 0:02:59]} 3. e5 {[%clk 0:03:01]}  c5 {[%clk 0:02:59]} 4. dxc5 {[%clk 0:03:00]}  e6 {[%clk 0:02:59]} 5. a3 {[%clk 0:03:01]}  Bxc5 {[%clk 0:02:58]} 6. b4 {[%clk 0:03:02]}  Be7 {[%clk 0:02:59]} 7. Qg4 {[%clk 0:02:59]}  g5 {[%clk 0:02:48]} 8. h4 {[%clk 0:02:59]}  h5 {[%clk 0:02:47]} 9. Qg3 {[%clk 0:02:59]}  g4 {[%clk 0:02:47]} 10. Bd3 {[%clk 0:02:50]}  a5 {[%clk 0:02:47]} 11. b5 {[%clk 0:02:50]}  Nd7 {[%clk 0:02:47]} 12. Ne2 {[%clk 0:02:39]}  Qc7 {[%clk 0:02:46]} 13. Bb2 {[%clk 0:02:38]}  Nc5 {[%clk 0:02:46]} 14. Nd4 {[%clk 0:02:06]}  Nh6 {[%clk 0:02:34]} 15. a4 {[%clk 0:01:44]}  Bd7 {[%clk 0:02:14]} 16. Nd2 {[%clk 0:01:34]}  Rc8 {[%clk 0:02:11]} 17. N2b3 {[%clk 0:01:17]}  Nxd3+ {[%clk 0:01:56]} 18. cxd3 {[%clk 0:01:16]}  Bb4+ {[%clk 0:01:53]} 19. Ke2 {[%clk 0:01:14]}  Nf5 {[%clk 0:01:49]} 20. Qf4 {[%clk 0:01:09]}  f6 {[%clk 0:00:31]} 21. Rac1 {[%clk 0:01:07]}  Qxe5+ {[%clk 0:00:27]} 22. Qxe5 {[%clk 0:01:08]}  fxe5 {[%clk 0:00:26]} 23. Rxc8+ {[%clk 0:01:08]}  Bxc8 {[%clk 0:00:25]} 24. Nxf5 {[%clk 0:01:09]}  exf5 {[%clk 0:00:26]} 25. Bxe5 {[%clk 0:01:10]}  O-O {[%clk 0:00:23]} 26. f4 {[%clk 0:01:07]}  gxf3+ {[%clk 0:00:16]} 27. gxf3 {[%clk 0:01:07]}  Kf7 {[%clk 0:00:13]} 28. Rc1 {[%clk 0:00:48]}  Ke6 {[%clk 0:00:10]} 29. f4 {[%clk 0:00:44]}  Bd6 {[%clk 0:00:11]} 30. Nd4+ {[%clk 0:00:25]}  Kd7 {[%clk 0:00:10]} 31. Rg1 {[%clk 0:00:21]}  Rf7 {[%clk 0:00:07]} 32. Rg8 {[%clk 0:00:18]}  Bc5 {[%clk 0:00:07]} 33. Nf3 {[%clk 0:00:15]}  b6 {[%clk 0:00:07]} 34. d4 {[%clk 0:00:12]}  Be7 {[%clk 0:00:05]} 35. Ng5 {[%clk 0:00:12]}  Rf8 {[%clk 0:00:04]} 36. Rg7 {[%clk 0:00:10]}  Ke8 {[%clk 0:00:04]} 37. Nh7 {[%clk 0:00:08]}  Rf7 {[%clk 0:00:02]} 38. Rg8+ {[%clk 0:00:08]}  Kd7 {[%clk 0:00:03]} 39. Ng5 {[%clk 0:00:08]}  Rf8 {[%clk 0:00:02]} 40. Rg6 {[%clk 0:00:08]}  Kd8 {[%clk 0:00:03]} 41. Rxb6 {[%clk 0:00:07]} 1-0


[Site "https://www.chess.com"]

[Event "Titled Tuesday Blitz April 11 Early 2023"]
[White "Ioannidis, Evgenios"]
[Black "Chylewski, Patryk"]
[WhiteFideId "4229274"]
[BlackFideId "1186191"]
[WhiteElo "2386"]
[BlackElo "2163"]
[Result "1-0"]
[Round "05"]
[TimeControl "180+2"]
[Date "2023.04.11"]
[WhiteClock "0:01:15"]
[BlackClock "0:00:02"]

1. d4 {[%clk 0:02:57]}  Nf6 {[%clk 0:02:59]} 2. c4 {[%clk 0:02:57]}  e6 {[%clk 0:02:59]} 3. Nc3 {[%clk 0:02:58]}  Bb4 {[%clk 0:02:59]} 4. Qc2 {[%clk 0:02:59]}  O-O {[%clk 0:02:59]} 5. e4 {[%clk 0:02:59]}  d5 {[%clk 0:02:58]} 6. e5 {[%clk 0:03:00]}  Ne4 {[%clk 0:02:59]} 7. Bd3 {[%clk 0:03:01]}  c5 {[%clk 0:02:58]} 8. Nf3 {[%clk 0:03:01]}  cxd4 {[%clk 0:02:59]} 9. Nxd4 {[%clk 0:03:02]}  Qh4 {[%clk 0:02:46]} 10. Nf3 {[%clk 0:02:51]}  Qg4 {[%clk 0:02:33]} 11. O-O {[%clk 0:02:49]}  Bxc3 {[%clk 0:02:28]} 12. bxc3 {[%clk 0:02:49]}  f5 {[%clk 0:02:11]} 13. exf6 {[%clk 0:02:44]}  Nxf6 {[%clk 0:02:10]} 14. h3 {[%clk 0:02:38]}  Qh5 {[%clk 0:02:09]} 15. Ba3 {[%clk 0:02:32]}  Re8 {[%clk 0:02:01]} 16. Rfe1 {[%clk 0:02:32]}  Bd7 {[%clk 0:01:39]} 17. Ne5 {[%clk 0:02:29]}  Nc6 {[%clk 0:01:32]} 18. Nxd7 {[%clk 0:02:24]}  Nxd7 {[%clk 0:01:33]} 19. Be2 {[%clk 0:02:05]}  Qf7 {[%clk 0:01:25]} 20. Bd6 {[%clk 0:02:03]}  Nf6 {[%clk 0:01:19]} 21. Rab1 {[%clk 0:01:45]}  Ne4 {[%clk 0:01:18]} 22. Bg3 {[%clk 0:01:39]}  Nxg3 {[%clk 0:01:18]} 23. fxg3 {[%clk 0:01:40]}  Rad8 {[%clk 0:01:17]} 24. Rf1 {[%clk 0:01:37]}  Qe7 {[%clk 0:01:14]} 25. Bd3 {[%clk 0:01:36]}  g6 {[%clk 0:01:11]} 26. Kh2 {[%clk 0:01:32]}  Ne5 {[%clk 0:01:08]} 27. cxd5 {[%clk 0:01:32]}  exd5 {[%clk 0:01:04]} 28. Rbe1 {[%clk 0:01:27]}  Qc7 {[%clk 0:00:59]} 29. Bb5 {[%clk 0:01:26]}  Rf8 {[%clk 0:00:57]} 30. Qe2 {[%clk 0:01:23]}  Rxf1 {[%clk 0:00:48]} 31. Qxf1 {[%clk 0:01:23]}  a6 {[%clk 0:00:44]} 32. Qf6 {[%clk 0:01:20]}  axb5 {[%clk 0:00:13]} 33. Rxe5 {[%clk 0:01:19]}  Rf8 {[%clk 0:00:08]} 34. Qe6+ {[%clk 0:01:17]}  Qf7 {[%clk 0:00:08]} 35. Qxd5 {[%clk 0:01:16]}  Qxd5 {[%clk 0:00:03]} 36. Rxd5 {[%clk 0:01:17]}  Rc8 {[%clk 0:00:03]} 37. Rxb5 {[%clk 0:01:17]}  Rxc3 {[%clk 0:00:03]} 38. Rxb7 {[%clk 0:01:17]}  Ra3 {[%clk 0:00:03]} 39. Rb2 {[%clk 0:01:18]}  Kg7 {[%clk 0:00:04]} 40. Rf2 {[%clk 0:01:17]}  Kh6 {[%clk 0:00:02]} 41. g4 {[%clk 0:01:16]}  Kg5 {[%clk 0:00:02]} 42. Kg1 {[%clk 0:01:15]}  Kh4 {[%clk 0:00:02]} 43. Kf1 {[%clk 0:01:15]} 1-0


[Site "https://www.chess.com"]

[Event "Titled Tuesday Blitz April 11 Early 2023"]
[White "Janaszak, Dawid"]
[Black "Yuan, Qingyu"]
[WhiteFideId "1119206"]
[BlackFideId "8609772"]
[WhiteElo "2220"]
[BlackElo "2359"]
[Result "0-1"]
[Round "05"]
[TimeControl "180+2"]
[Date "2023.04.11"]
[WhiteClock "0:00:05"]
[BlackClock "0:00:49"]

1. e4 {[%clk 0:02:49]}  e5 {[%clk 0:03:00]} 2. Nf3 {[%clk 0:02:47]}  Nc6 {[%clk 0:03:00]} 3. d4 {[%clk 0:02:46]}  exd4 {[%clk 0:03:00]} 4. Nxd4 {[%clk 0:02:47]}  Nf6 {[%clk 0:03:01]} 5. Nxc6 {[%clk 0:02:46]}  bxc6 {[%clk 0:03:02]} 6. Nd2 {[%clk 0:02:44]}  d5 {[%clk 0:02:59]} 7. exd5 {[%clk 0:02:45]}  cxd5 {[%clk 0:02:59]} 8. Bb5+ {[%clk 0:02:46]}  Bd7 {[%clk 0:02:59]} 9. Bxd7+ {[%clk 0:02:46]}  Qxd7 {[%clk 0:03:00]} 10. O-O {[%clk 0:02:47]}  Be7 {[%clk 0:03:00]} 11. b3 {[%clk 0:02:46]}  O-O {[%clk 0:03:01]} 12. Bb2 {[%clk 0:02:47]}  c5 {[%clk 0:02:57]} 13. c4 {[%clk 0:02:46]}  d4 {[%clk 0:02:55]} 14. Qf3 {[%clk 0:02:41]}  Bd6 {[%clk 0:02:47]} 15. Rfe1 {[%clk 0:02:38]}  Rae8 {[%clk 0:02:46]} 16. h3 {[%clk 0:02:33]}  a5 {[%clk 0:02:36]} 17. Rab1 {[%clk 0:02:13]}  h6 {[%clk 0:02:35]} 18. Ba3 {[%clk 0:02:08]}  Bb8 {[%clk 0:02:07]} 19. g3 {[%clk 0:01:48]}  Bd6 {[%clk 0:01:55]} 20. Kg2 {[%clk 0:01:46]}  h5 {[%clk 0:01:43]} 21. Ne4 {[%clk 0:01:42]}  Nxe4 {[%clk 0:01:37]} 22. Rxe4 {[%clk 0:01:43]}  Rxe4 {[%clk 0:01:33]} 23. Qxe4 {[%clk 0:01:44]}  Re8 {[%clk 0:01:34]} 24. Qd5 {[%clk 0:01:44]}  Re5 {[%clk 0:01:27]} 25. Qa8+ {[%clk 0:01:42]}  Kh7 {[%clk 0:01:28]} 26. Qf3 {[%clk 0:01:13]}  Qe6 {[%clk 0:01:28]} 27. Bc1 {[%clk 0:01:08]}  Re1 {[%clk 0:01:12]} 28. Qd3+ {[%clk 0:01:06]}  Qg6 {[%clk 0:01:11]} 29. Qxg6+ {[%clk 0:00:43]}  Kxg6 {[%clk 0:01:12]} 30. Ra1 {[%clk 0:00:44]}  d3 {[%clk 0:01:00]} 31. g4 {[%clk 0:00:08]}  hxg4 {[%clk 0:00:55]} 32. hxg4 {[%clk 0:00:05]}  d2 {[%clk 0:00:49]} 0-1


[Site "https://www.chess.com"]

[Event "Titled Tuesday Blitz April 11 Early 2023"]
[White "Bocharov, Dmitry"]
[Black "Martic, Ivan"]
[WhiteFideId "4138716"]
[BlackFideId "929301"]
[WhiteElo "2469"]
[BlackElo "2360"]
[Result "0-1"]
[Round "05"]
[TimeControl "180+2"]
[Date "2023.04.11"]
[WhiteClock "0:00:41"]
[BlackClock "0:00:43"]

1. d4 {[%clk 0:03:00]}  Nf6 {[%clk 0:02:58]} 2. Nc3 {[%clk 0:03:00]}  d5 {[%clk 0:02:56]} 3. Bf4 {[%clk 0:03:00]}  a6 {[%clk 0:02:53]} 4. e3 {[%clk 0:02:59]}  b5 {[%clk 0:02:53]} 5. h4 {[%clk 0:02:58]}  Bb7 {[%clk 0:02:46]} 6. g4 {[%clk 0:02:56]}  e6 {[%clk 0:02:47]} 7. g5 {[%clk 0:02:56]}  Nfd7 {[%clk 0:02:47]} 8. Bg2 {[%clk 0:02:55]}  c5 {[%clk 0:02:46]} 9. Nf3 {[%clk 0:02:53]}  Nc6 {[%clk 0:02:46]} 10. h5 {[%clk 0:02:52]}  Be7 {[%clk 0:02:25]} 11. h6 {[%clk 0:02:46]}  g6 {[%clk 0:02:23]} 12. e4 {[%clk 0:02:46]}  Nxd4 {[%clk 0:02:17]} 13. Nxd4 {[%clk 0:02:42]}  cxd4 {[%clk 0:02:15]} 14. Qxd4 {[%clk 0:02:24]}  f6 {[%clk 0:02:11]} 15. gxf6 {[%clk 0:02:05]}  Bxf6 {[%clk 0:02:11]} 16. Qd3 {[%clk 0:01:57]}  b4 {[%clk 0:01:59]} 17. Na4 {[%clk 0:01:39]}  Qa5 {[%clk 0:01:54]} 18. Qb3 {[%clk 0:01:32]}  Bc6 {[%clk 0:01:46]} 19. exd5 {[%clk 0:01:30]}  Bxa4 {[%clk 0:01:45]} 20. Qe3 {[%clk 0:01:31]}  e5 {[%clk 0:01:41]} 21. O-O {[%clk 0:01:27]}  O-O {[%clk 0:01:38]} 22. Bg3 {[%clk 0:01:26]}  Bxc2 {[%clk 0:01:31]} 23. Rac1 {[%clk 0:01:21]}  Rac8 {[%clk 0:01:31]} 24. d6 {[%clk 0:01:20]}  Qxa2 {[%clk 0:01:22]} 25. Qd2 {[%clk 0:01:06]}  Qxb2 {[%clk 0:01:19]} 26. Be4 {[%clk 0:00:56]}  b3 {[%clk 0:01:15]} 27. Qd5+ {[%clk 0:00:42]}  Kh8 {[%clk 0:00:59]} 28. Qe6 {[%clk 0:00:41]}  Nc5 {[%clk 0:00:43]} 0-1


[Site "https://www.chess.com"]

[Event "Titled Tuesday Blitz April 11 Early 2023"]
[White "Omelja, Artem"]
[Black "Iliaguev, Nisim"]
[WhiteFideId "14119846"]
[BlackFideId "2817276"]
[WhiteElo "2404"]
[BlackElo "2241"]
[Result "0-1"]
[Round "05"]
[TimeControl "180+2"]
[Date "2023.04.11"]
[WhiteClock "0:00:03"]
[BlackClock "0:00:54"]

1. e4 {[%clk 0:02:30]}  c6 {[%clk 0:02:58]} 2. Ne2 {[%clk 0:02:25]}  d5 {[%clk 0:02:58]} 3. e5 {[%clk 0:02:24]}  h5 {[%clk 0:02:55]} 4. h4 {[%clk 0:02:19]}  Bf5 {[%clk 0:02:56]} 5. Ng3 {[%clk 0:02:18]}  Bg6 {[%clk 0:02:56]} 6. e6 {[%clk 0:02:18]}  f6 {[%clk 0:02:44]} 7. d4 {[%clk 0:01:59]}  Qd6 {[%clk 0:02:42]} 8. Qe2 {[%clk 0:01:58]}  Nh6 {[%clk 0:02:37]} 9. Nxh5 {[%clk 0:01:28]}  Nf5 {[%clk 0:02:24]} 10. Bf4 {[%clk 0:00:52]}  Bxh5 {[%clk 0:02:21]} 11. Qd2 {[%clk 0:00:32]}  Qxe6+ {[%clk 0:02:19]} 12. Be3 {[%clk 0:00:31]}  Nxe3 {[%clk 0:02:18]} 13. fxe3 {[%clk 0:00:32]}  Qd6 {[%clk 0:02:18]} 14. Nc3 {[%clk 0:00:32]}  Qg3+ {[%clk 0:02:17]} 15. Qf2 {[%clk 0:00:33]}  Qxf2+ {[%clk 0:02:18]} 16. Kxf2 {[%clk 0:00:34]}  Nd7 {[%clk 0:02:18]} 17. Bd3 {[%clk 0:00:35]}  O-O-O {[%clk 0:02:16]} 18. Rag1 {[%clk 0:00:35]}  e5 {[%clk 0:02:14]} 19. g4 {[%clk 0:00:36]}  Bf7 {[%clk 0:02:14]} 20. Bf5 {[%clk 0:00:35]}  Kc7 {[%clk 0:02:15]} 21. Ne2 {[%clk 0:00:34]}  e4 {[%clk 0:02:12]} 22. h5 {[%clk 0:00:34]}  Bd6 {[%clk 0:02:10]} 23. Nf4 {[%clk 0:00:34]}  Nf8 {[%clk 0:02:06]} 24. g5 {[%clk 0:00:30]}  Bxf4 {[%clk 0:02:00]} 25. exf4 {[%clk 0:00:31]}  Ne6 {[%clk 0:01:41]} 26. h6 {[%clk 0:00:22]}  g6 {[%clk 0:01:34]} 27. Bxe6 {[%clk 0:00:16]}  Bxe6 {[%clk 0:01:35]} 28. gxf6 {[%clk 0:00:13]}  Bf5 {[%clk 0:01:36]} 29. Ke3 {[%clk 0:00:09]}  Rdf8 {[%clk 0:01:35]} 30. h7 {[%clk 0:00:09]}  Rxf6 {[%clk 0:01:35]} 31. Rh6 {[%clk 0:00:09]}  Rf7 {[%clk 0:01:32]} 32. Rgh1 {[%clk 0:00:09]}  Kd7 {[%clk 0:01:32]} 33. c4 {[%clk 0:00:05]}  Ke6 {[%clk 0:01:31]} 34. cxd5+ {[%clk 0:00:05]}  Kxd5 {[%clk 0:01:30]} 35. b3 {[%clk 0:00:05]}  a5 {[%clk 0:01:28]} 36. a3 {[%clk 0:00:05]}  b6 {[%clk 0:01:28]} 37. b4 {[%clk 0:00:05]}  axb4 {[%clk 0:01:28]} 38. axb4 {[%clk 0:00:06]}  b5 {[%clk 0:01:29]} 39. R6h2 {[%clk 0:00:06]}  g5 {[%clk 0:01:26]} 40. fxg5 {[%clk 0:00:06]}  Rfxh7 {[%clk 0:01:26]} 41. Rh6 {[%clk 0:00:03]}  Rxh6 {[%clk 0:01:26]} 42. gxh6 {[%clk 0:00:04]}  Kc4 {[%clk 0:01:16]} 43. Rc1+ {[%clk 0:00:03]}  Kxb4 {[%clk 0:01:15]} 44. Rxc6 {[%clk 0:00:03]}  Ka4 {[%clk 0:01:05]} 45. Rf6 {[%clk 0:00:04]}  Bh7 {[%clk 0:01:04]} 46. d5 {[%clk 0:00:04]}  b4 {[%clk 0:01:03]} 47. d6 {[%clk 0:00:04]}  b3 {[%clk 0:00:57]} 48. d7 {[%clk 0:00:04]}  Rd8 {[%clk 0:00:56]} 49. Rf7 {[%clk 0:00:04]}  b2 {[%clk 0:00:55]} 50. Rf1 {[%clk 0:00:04]}  Rxd7 {[%clk 0:00:54]} 51. Rg1 {[%clk 0:00:03]}  Kb3 {[%clk 0:00:54]} 0-1


[Site "https://www.chess.com"]

[Event "Titled Tuesday Blitz April 11 Early 2023"]
[White "Risteski, Emil"]
[Black "Trifan, Andrei Ioan"]
[WhiteFideId "15005267"]
[BlackFideId "12967068"]
[WhiteElo "2251"]
[BlackElo "2208"]
[Result "0-1"]
[Round "05"]
[TimeControl "180+2"]
[Date "2023.04.11"]
[WhiteClock "0:00:14"]
[BlackClock "0:01:00"]

1. c4 {[%clk 0:02:02]}  e5 {[%clk 0:02:56]} 2. Nc3 {[%clk 0:02:02]}  Nf6 {[%clk 0:02:55]} 3. g3 {[%clk 0:02:03]}  d5 {[%clk 0:02:54]} 4. cxd5 {[%clk 0:02:04]}  Nxd5 {[%clk 0:02:55]} 5. Bg2 {[%clk 0:02:04]}  Nb6 {[%clk 0:02:54]} 6. Nf3 {[%clk 0:02:04]}  Nc6 {[%clk 0:02:54]} 7. O-O {[%clk 0:02:05]}  Bd6 {[%clk 0:02:48]} 8. b3 {[%clk 0:02:05]}  O-O {[%clk 0:02:47]} 9. Bb2 {[%clk 0:02:06]}  a5 {[%clk 0:02:45]} 10. d4 {[%clk 0:01:58]}  exd4 {[%clk 0:02:36]} 11. Nxd4 {[%clk 0:01:58]}  Bd7 {[%clk 0:02:36]} 12. Ncb5 {[%clk 0:01:55]}  Be7 {[%clk 0:02:32]} 13. Nxc6 {[%clk 0:01:51]}  Bxc6 {[%clk 0:02:23]} 14. Qxd8 {[%clk 0:01:51]}  Rfxd8 {[%clk 0:02:12]} 15. Bxc6 {[%clk 0:01:16]}  bxc6 {[%clk 0:02:12]} 16. Na3 {[%clk 0:01:14]}  Rd2 {[%clk 0:02:02]} 17. Bc3 {[%clk 0:01:08]}  Rxe2 {[%clk 0:02:01]} 18. Nc4 {[%clk 0:01:08]}  Nxc4 {[%clk 0:02:00]} 19. bxc4 {[%clk 0:01:07]}  Bb4 {[%clk 0:01:54]} 20. Bd4 {[%clk 0:01:06]}  c5 {[%clk 0:01:51]} 21. Be3 {[%clk 0:01:03]}  h6 {[%clk 0:01:41]} 22. Rfd1 {[%clk 0:00:54]}  Bc3 {[%clk 0:01:29]} 23. Rac1 {[%clk 0:00:52]}  Bd4 {[%clk 0:01:30]} 24. Bxd4 {[%clk 0:00:52]}  cxd4 {[%clk 0:01:31]} 25. Rxd4 {[%clk 0:00:53]}  Rxa2 {[%clk 0:01:31]} 26. Rd7 {[%clk 0:00:53]}  Rc8 {[%clk 0:01:20]} 27. Re1 {[%clk 0:00:51]}  Rc2 {[%clk 0:01:11]} 28. Ree7 {[%clk 0:00:48]}  Rxc4 {[%clk 0:01:11]} 29. Rxf7 {[%clk 0:00:49]}  Rg4 {[%clk 0:01:12]} 30. h3 {[%clk 0:00:42]}  Rg6 {[%clk 0:01:10]} 31. h4 {[%clk 0:00:41]}  a4 {[%clk 0:01:09]} 32. h5 {[%clk 0:00:40]}  Rg5 {[%clk 0:01:07]} 33. Rxc7 {[%clk 0:00:19]}  Ra8 {[%clk 0:01:01]} 34. Rc2 {[%clk 0:00:14]}  Kxf7 {[%clk 0:01:00]} 0-1


[Site "https://www.chess.com"]